fUST/lending_fUST_20260602
["ID","MTS","AMOUNT","RATE_DAILY","PERIOD"]
[423762650,1780398644000,-500.0,0.00016532,2]
[423762651,1780398644000,-690.91,0.00016532,2]
[423762620,1780398644000,-555.50400172,0.00016258,2]
[423762616,1780398644000,-500.0,0.00016258,2]
[423762682,1780398644000,-354.04,0.00016806,2]
[423762624,1780398644000,-500.0,0.00016258,2]
[423762625,1780398644000,-500.0,0.00016258,2]
[423762623,1780398644000,-500.0,0.00016258,2]
[423762626,1780398644000,-500.0,0.00016258,2]
[423762627,1780398644000,-1774.6875,0.00016259,2]
[423762632,1780398644000,-810.94,0.00016438,2]
[423762629,1780398644000,-7201.76364397,0.000164,2]
[423762630,1780398644000,-151.0,0.000164,2]
[423762631,1780398644000,-535.91,0.00016438,2]
[423762628,1780398644000,-1273.15,0.0001626,2]
[423762633,1780398644000,-1062.49,0.00016438,2]
[423762619,1780398644000,-500.0,0.00016258,2]
[423762645,1780398644000,-268.266893,0.00016532,2]
[423762637,1780398644000,-500.0,0.00016531,2]
[423762641,1780398644000,-821.69,0.00016532,2]
[423762642,1780398644000,-500.0,0.00016532,2]
[423762636,1780398644000,-501.38,0.00016531,2]
[423762644,1780398644000,-166.79439754,0.00016532,2]
[423762639,1780398644000,-569.45,0.00016531,2]
[423762648,1780398644000,-268.266893,0.00016532,2]
[423762643,1780398644000,-500.0,0.00016532,2]
[423762638,1780398644000,-759.36,0.00016531,2]
[423762646,1780398644000,-268.266893,0.00016532,2]
[423762634,1780398644000,-500.0,0.00016438,2]
[423762647,1780398644000,-268.266893,0.00016532,2]
[423762635,1780398644000,-151.0,0.000165,2]
[423762640,1780398644000,-500.0,0.00016532,2]
[423762725,1780398645000,-487.0,0.00017079,2]
[423762737,1780398645000,-500.0,0.0001708,2]
[423762736,1780398645000,-500.0,0.0001708,2]
[423762726,1780398645000,-487.0,0.00017079,2]
[423762724,1780398645000,-487.0,0.00017079,2]
[423762723,1780398645000,-487.0,0.00017079,2]
[423762722,1780398645000,-487.0,0.00017079,2]
[423762720,1780398645000,-569.45,0.00017079,2]
[423762719,1780398645000,-759.36,0.00017079,2]
[423762728,1780398645000,-500.0,0.0001708,2]
[423762718,1780398645000,-501.38,0.00017079,2]
[423762721,1780398645000,-487.0,0.00017079,2]
[423762717,1780398645000,-151.0,0.00017,2]
[423762733,1780398645000,-500.0,0.0001708,2]
[423762734,1780398645000,-690.91,0.0001708,2]
[423762730,1780398645000,-500.0,0.0001708,2]
[423762729,1780398645000,-821.69,0.0001708,2]
[423762732,1780398645000,-500.0,0.0001708,2]
[423762731,1780398645000,-500.0,0.0001708,2]
[423762735,1780398645000,-701.31,0.0001708,2]
[423762738,1780398645000,-500.0,0.0001708,2]
[423762742,1780398645000,-535.91,0.0001726,2]
[423762741,1780398645000,-151.0,0.000171,2]
[423762740,1780398645000,-151.0,0.000171,2]
[423762743,1780398645000,-810.94,0.0001726,2]
[423762748,1780398645000,-569.45,0.00017353,2]
[423762713,1780398645000,-535.91,0.00016986,2]
[423762750,1780398645000,-243.16227093,0.00017354,2]
[423762727,1780398645000,-841.19,0.00017079,2]
[423762711,1780398645000,-154.50025753,0.00016882,2]
[423762698,1780398645000,-237.8622621,0.00016844,2]
[423762710,1780398645000,-170.61570331,0.00016882,2]
[423762745,1780398645000,-500.0,0.0001726,2]
[423762686,1780398645000,-370.44640104,0.00016832,2]
[423762687,1780398645000,-358.86453798,0.00016832,2]
[423762689,1780398645000,-198.3732331,0.00016844,2]
[423762684,1780398645000,-500.0,0.00016806,2]
[423762688,1780398645000,-164.29414769,0.00016844,2]
[423762691,1780398645000,-316.62657363,0.00016844,2]
[423762699,1780398645000,-357.28261762,0.00016844,2]
[423762701,1780398645000,-390.82390029,0.00016862,2]
[423762702,1780398645000,-179.96830179,0.00016862,2]
[423762693,1780398645000,-394.1818966,0.00016844,2]
[423762692,1780398645000,-356.98558684,0.00016844,2]
[423762700,1780398645000,-301.66842525,0.00016844,2]
[423762706,1780398645000,-150.5638644,0.00016862,2]
[423762694,1780398645000,-155.22195876,0.00016844,2]
[423762696,1780398645000,-371.95688235,0.00016844,2]
[423762697,1780398645000,-397.29060369,0.00016844,2]
[423762695,1780398645000,-347.46116953,0.00016844,2]
[423762705,1780398645000,-423.02060799,0.00016862,2]
[423762703,1780398645000,-325.74998379,0.00016862,2]
[423762716,1780398645000,-500.0,0.00016986,2]
[423762715,1780398645000,-1062.49,0.00016986,2]
[423762707,1780398645000,-165.40997833,0.00016862,2]
[423762709,1780398645000,-177.22245684,0.00016882,2]
[423762708,1780398645000,-180.84634647,0.00016882,2]
[423762704,1780398645000,-191.32270791,0.00016862,2]
[423762714,1780398645000,-810.94,0.00016986,2]
[423762712,1780398645000,-173.14254778,0.00016882,2]
[423762690,1780398645000,-246.96452725,0.00016844,2]
[423762751,1780398645000,-212.91834087,0.00017354,2]
[423762685,1780398645000,-1273.15,0.00016808,2]
[423762749,1780398645000,-555.66960156,0.00017354,2]
[423762779,1780398645000,-535.92392643,0.00017366,2]
[423762782,1780398645000,-359.93660359,0.00017385,2]
[423762785,1780398645000,-382.64541582,0.00017385,2]
[423762781,1780398645000,-586.23585044,0.00017385,2]
[423762783,1780398645000,-488.62497569,0.00017385,2]
[423762788,1780398645000,-301.12772879,0.00017385,2]
[423762784,1780398645000,-218.71429429,0.00017385,2]
[423762789,1780398645000,-330.81995665,0.00017385,2]
[423762786,1780398645000,-156.03221072,0.00017385,2]
[423762787,1780398645000,-634.53091199,0.00017385,2]
[423762793,1780398645000,-341.23140661,0.00017405,2]
[423762792,1780398645000,-354.44491368,0.00017405,2]
[423762795,1780398645000,-309.00051505,0.00017405,2]
[423762791,1780398645000,-361.69269294,0.00017405,2]
[423762797,1780398645000,-810.94,0.00017534,2]
[423762803,1780398645000,-569.45,0.00017627,2]
[423762804,1780398645000,-500.0,0.00017628,2]
[423762798,1780398645000,-1062.49,0.00017534,2]
[423762796,1780398645000,-535.91,0.00017534,2]
[423762799,1780398645000,-500.0,0.00017534,2]
[423762801,1780398645000,-501.38,0.00017627,2]
[423762802,1780398645000,-759.36,0.00017627,2]
[423762808,1780398645000,-690.91,0.00017628,2]
[423762805,1780398645000,-821.69,0.00017628,2]
[423762806,1780398645000,-500.0,0.00017628,2]
[423762809,1780398645000,-701.31,0.00017628,2]
[423762807,1780398645000,-500.0,0.00017628,2]
[423762744,1780398645000,-1062.49,0.0001726,2]
[423762800,1780398645000,-151.0,0.000176,2]
[423762780,1780398645000,-452.50263788,0.00017366,2]
[423762794,1780398645000,-346.28509557,0.00017405,2]
[423762774,1780398645000,-310.44391752,0.00017366,2]
[423762739,1780398645000,-1273.15,0.00017082,2]
[423762790,1780398645000,-295.98905122,0.00017385,2]
[423762746,1780398645000,-501.38,0.00017353,2]
[423762747,1780398645000,-759.36,0.00017353,2]
[423762753,1780398645000,-500.0,0.00017354,2]
[423762765,1780398645000,-282.8805441,0.00017366,2]
[423762763,1780398645000,-500.0,0.00017354,2]
[423762754,1780398645000,-821.69,0.00017354,2]
[423762764,1780398645000,-1273.15,0.00017356,2]
[423762752,1780398645000,-538.29680697,0.00017354,2]
[423762756,1780398645000,-500.0,0.00017354,2]
[423762760,1780398645000,-701.31,0.00017354,2]
[423762755,1780398645000,-500.0,0.00017354,2]
[423762761,1780398645000,-567.70003075,0.00017354,2]
[423762758,1780398645000,-447.94929371,0.00017354,2]
[423762759,1780398645000,-690.91,0.00017354,2]
[423762776,1780398645000,-557.93532353,0.00017366,2]
[423762778,1780398645000,-475.72452421,0.00017366,2]
[423762757,1780398645000,-471.71,0.00017354,2]
[423762773,1780398645000,-591.2728449,0.00017366,2]
[423762772,1780398645000,-535.47838025,0.00017366,2]
[423762777,1780398645000,-595.93590554,0.00017366,2]
[423762775,1780398645000,-521.19175429,0.00017366,2]
[423762771,1780398645000,-474.93986045,0.00017366,2]
[423762767,1780398645000,-396.74646619,0.00017366,2]
[423762768,1780398645000,-493.9290545,0.00017366,2]
[423762766,1780398645000,-328.58829539,0.00017366,2]
[423762769,1780398645000,-269.59344577,0.00017366,2]
[423762762,1780398645000,-500.0,0.00017354,2]
[423762770,1780398645000,-236.08763987,0.00017366,2]
[423762852,1780398646000,-496.22993498,0.00017733,2]
[423762854,1780398646000,-694.92233906,0.00017733,2]
[423762847,1780398646000,-775.65984123,0.00017733,2]
[423762849,1780398646000,-846.04121598,0.00017733,2]
[423762848,1780398646000,-312.06442145,0.00017733,2]
[423762844,1780398646000,-539.90490538,0.00017733,2]
[423762834,1780398646000,-713.97117367,0.00017713,2]
[423762856,1780398646000,-542.53903941,0.00017753,2]
[423762853,1780398646000,-591.97810245,0.00017733,2]
[423762846,1780398646000,-437.42858858,0.00017733,2]
[423762845,1780398646000,-651.49996758,0.00017733,2]
[423762850,1780398646000,-303.86308469,0.00017733,2]
[423762855,1780398646000,-243.89725994,0.00017753,2]
[423762851,1780398646000,-383.06302327,0.00017733,2]
[423762871,1780398646000,-197.46719379,0.00017894,2]
[423762868,1780398646000,-151.0,0.00017894,2]
[423762857,1780398646000,-531.66737052,0.00017753,2]
[423762866,1780398646000,-1062.49,0.00017808,2]
[423762867,1780398646000,-200.48,0.00017808,2]
[423762864,1780398646000,-535.91,0.00017808,2]
[423762862,1780398646000,-519.42764335,0.00017753,2]
[423762865,1780398646000,-810.94,0.00017808,2]
[423762860,1780398646000,-190.43282185,0.00017753,2]
[423762859,1780398646000,-511.84710992,0.00017753,2]
[423762861,1780398646000,-191.1730959,0.00017753,2]
[423762863,1780398646000,-164.80429406,0.00017753,2]
[423762869,1780398646000,-151.0,0.00017894,2]
[423762835,1780398646000,-788.3637932,0.00017713,2]
[423762858,1780398646000,-209.48103728,0.00017753,2]
[423762838,1780398646000,-794.58120738,0.00017713,2]
[423762812,1780398646000,-1273.15,0.0001763,2]
[423762837,1780398646000,-743.9137647,0.00017713,2]
[423762872,1780398646000,-151.0,0.00017894,2]
[423762811,1780398646000,-516.24,0.00017628,2]
[423762816,1780398646000,-182.83022839,0.00017702,2]
[423762814,1780398646000,-151.0,0.000177,2]
[423762817,1780398646000,-152.37955737,0.00017702,2]
[423762815,1780398646000,-151.0,0.000177,2]
[423762813,1780398646000,-720.0,0.00017632,2]
[423762810,1780398646000,-500.0,0.00017628,2]
[423762819,1780398646000,-162.39075482,0.00017702,2]
[423762818,1780398646000,-195.93343579,0.00017702,2]
[423762820,1780398646000,-205.2365557,0.00017702,2]
[423762821,1780398646000,-486.32454185,0.00017702,2]
[423762822,1780398646000,-166.85423748,0.00017702,2]
[423762823,1780398646000,-201.57784518,0.00017713,2]
[423762826,1780398646000,-180.69547154,0.00017713,2]
[423762825,1780398646000,-242.78614788,0.00017713,2]
[423762827,1780398646000,-595.11969929,0.00017713,2]
[423762824,1780398646000,-565.76108819,0.00017713,2]
[423762830,1780398646000,-162.62839946,0.00017713,2]
[423762829,1780398646000,-539.18689154,0.00017713,2]
[423762828,1780398646000,-740.89358175,0.00017713,2]
[423762831,1780398646000,-472.17527974,0.00017713,2]
[423762840,1780398646000,-155.23085692,0.00017713,2]
[423762841,1780398646000,-714.56523524,0.00017713,2]
[423762839,1780398646000,-713.58678631,0.00017713,2]
[423762843,1780398646000,-781.64780058,0.00017733,2]
[423762842,1780398646000,-603.33685051,0.00017713,2]
[423762832,1780398646000,-633.25314726,0.00017713,2]
[423762833,1780398646000,-759.57228121,0.00017713,2]
[423762836,1780398646000,-465.66587628,0.00017713,2]
[423762873,1780398646000,-151.0,0.00017894,2]
[423762880,1780398646000,-151.0,0.00017894,2]
[423762877,1780398646000,-151.0,0.00017894,2]
[423762908,1780398646000,-868.65292382,0.00018081,2]
[423762910,1780398646000,-810.94,0.00018082,2]
[423762912,1780398646000,-501.38,0.00018175,2]
[423762911,1780398646000,-1062.49,0.00018082,2]
[423762922,1780398646000,-1273.15,0.00018178,2]
[423762916,1780398646000,-821.69,0.00018176,2]
[423762923,1780398646000,-268.58135913,0.000182,2]
[423762915,1780398646000,-500.0,0.00018176,2]
[423762913,1780398646000,-759.36,0.00018175,2]
[423762917,1780398646000,-499.73,0.00018176,2]
[423762914,1780398646000,-569.45,0.00018175,2]
[423762919,1780398646000,-690.91,0.00018176,2]
[423762920,1780398646000,-701.31,0.00018176,2]
[423762909,1780398646000,-535.91,0.00018082,2]
[423762918,1780398646000,-500.0,0.00018176,2]
[423762924,1780398646000,-151.0,0.000182,2]
[423762929,1780398646000,-810.94,0.00018356,2]
[423762932,1780398646000,-191.84382796,0.000184,2]
[423762927,1780398646000,-151.0,0.000182,2]
[423762933,1780398646000,-501.38,0.00018449,2]
[423762925,1780398646000,-151.0,0.000182,2]
[423762926,1780398646000,-191.84382796,0.000182,2]
[423762931,1780398646000,-268.58135913,0.000184,2]
[423762935,1780398646000,-569.45,0.00018449,2]
[423762875,1780398646000,-151.0,0.00017894,2]
[423762934,1780398646000,-759.36,0.00018449,2]
[423762930,1780398646000,-1062.49,0.00018356,2]
[423762936,1780398646000,-500.0,0.0001845,2]
[423762921,1780398646000,-500.0,0.00018176,2]
[423762898,1780398646000,-500.0,0.00017902,2]
[423762928,1780398646000,-535.91,0.00018356,2]
[423762907,1780398646000,-969.57480154,0.00018081,2]
[423762906,1780398646000,-814.37495948,0.00018081,2]
[423762879,1780398646000,-151.0,0.00017894,2]
[423762882,1780398646000,-151.0,0.00017894,2]
[423762874,1780398646000,-151.0,0.00017894,2]
[423762870,1780398646000,-151.0,0.00017894,2]
[423762878,1780398646000,-151.0,0.00017894,2]
[423762876,1780398646000,-151.0,0.00017894,2]
[423762894,1780398646000,-500.0,0.00017902,2]
[423762884,1780398646000,-151.0,0.00017894,2]
[423762883,1780398646000,-151.0,0.00017894,2]
[423762892,1780398646000,-500.0,0.00017902,2]
[423762889,1780398646000,-501.38,0.00017901,2]
[423762896,1780398646000,-690.91,0.00017902,2]
[423762885,1780398646000,-151.0,0.00017894,2]
[423762881,1780398646000,-151.0,0.00017894,2]
[423762895,1780398646000,-500.0,0.00017902,2]
[423762888,1780398646000,-151.0,0.00017894,2]
[423762901,1780398646000,-191.84382796,0.00018,2]
[423762903,1780398646000,-949.46535151,0.00018061,2]
[423762905,1780398646000,-970.62168247,0.00018081,2]
[423762900,1780398646000,-268.58135913,0.00018,2]
[423762899,1780398646000,-1273.15,0.00017904,2]
[423762902,1780398646000,-953.67840416,0.00018,2]
[423762893,1780398646000,-821.69,0.00017902,2]
[423762891,1780398646000,-569.45,0.00017901,2]
[423762897,1780398646000,-701.31,0.00017902,2]
[423762904,1780398646000,-754.17106314,0.00018061,2]
[423762887,1780398646000,-151.0,0.00017894,2]
[423762886,1780398646000,-151.0,0.00017894,2]
[423762890,1780398646000,-759.36,0.00017901,2]
[423762982,1780398647000,-268.266893,0.00018769,2]
[423763007,1780398647000,-701.31,0.00018998,2]
[423763022,1780398647000,-2221.51927468,0.00019011,7]
[423762986,1780398647000,-151.0,0.000188,2]
[423762990,1780398647000,-151.0,0.000189,2]
[423762991,1780398647000,-535.91,0.00018904,2]
[423762995,1780398647000,-1062.49,0.00018904,2]
[423762993,1780398647000,-810.94,0.00018904,2]
[423762997,1780398647000,-501.38,0.00018996,2]
[423763003,1780398647000,-821.69,0.00018998,2]
[423763001,1780398647000,-569.45,0.00018996,2]
[423762988,1780398647000,-151.0,0.000188,2]
[423763010,1780398647000,-152.0,0.00019,7]
[423762999,1780398647000,-759.36,0.00018996,2]
[423763009,1780398647000,-152.0,0.00019,7]
[423763012,1780398647000,-151.0,0.00019,2]
[423763014,1780398647000,-1273.15,0.00019,2]
[423763017,1780398647000,-555.93575442,0.00019011,7]
[423763016,1780398647000,-595.31571242,0.00019011,7]
[423763019,1780398647000,-334.67124454,0.00019011,7]
[423763024,1780398647000,-151.0,0.000191,2]
[423763028,1780398647000,-1062.49,0.00019178,2]
[423763027,1780398647000,-810.94,0.00019178,2]
[423762978,1780398647000,-268.266893,0.00018769,2]
[423763005,1780398647000,-690.91,0.00018998,2]
[423762980,1780398647000,-268.266893,0.00018769,2]
[423762955,1780398647000,-268.58135913,0.000187,2]
[423762976,1780398647000,-268.266893,0.00018769,2]
[423762937,1780398647000,-821.69,0.0001845,2]
[423762938,1780398647000,-628.08,0.0001845,2]
[423762939,1780398647000,-690.91,0.0001845,2]
[423762940,1780398647000,-701.31,0.0001845,2]
[423762942,1780398647000,-1273.15,0.00018452,2]
[423762941,1780398647000,-415.65396456,0.0001845,2]
[423762944,1780398647000,-191.84382796,0.000185,2]
[423762943,1780398647000,-268.58135913,0.000185,2]
[423762946,1780398647000,-977.24995138,0.00018603,2]
[423762945,1780398647000,-714.77403881,0.00018504,2]
[423762954,1780398647000,-151.0,0.000187,2]
[423762948,1780398647000,-535.91,0.0001863,2]
[423762952,1780398647000,-1062.49,0.0001863,2]
[423762950,1780398647000,-810.94,0.0001863,2]
[423762947,1780398647000,-905.00527576,0.00018603,2]
[423762957,1780398647000,-501.38,0.00018723,2]
[423762959,1780398647000,-759.36,0.00018723,2]
[423762965,1780398647000,-821.69,0.00018724,2]
[423762961,1780398647000,-569.45,0.00018723,2]
[423762963,1780398647000,-564.17,0.00018724,2]
[423762967,1780398647000,-690.91,0.00018724,2]
[423762969,1780398647000,-701.31,0.00018724,2]
[423762971,1780398647000,-1273.15,0.00018726,2]
[423762973,1780398647000,-161.9,0.00018731,2]
[423762984,1780398647000,-151.0,0.000188,2]
[423762975,1780398647000,-46648.3947549,0.00018769,2]
[423763026,1780398647000,-535.91,0.00019178,2]
[423763058,1780398647000,-151.0,0.00019537,2]
[423763020,1780398647000,-2378.88158684,0.00019011,7]
[423763064,1780398647000,-292.0,0.00019537,2]
[423763063,1780398647000,-151.0,0.00019537,2]
[423763066,1780398647000,-759.36,0.00019544,2]
[423763067,1780398647000,-569.45,0.00019544,2]
[423763068,1780398647000,-821.69,0.00019546,2]
[423763065,1780398647000,-501.38,0.00019544,2]
[423763069,1780398647000,-446.47744343,0.00019546,2]
[423763076,1780398647000,-1840.74709586,0.00013561,2]
[423763077,1780398647000,-3159.25290414,0.00013561,2]
[423763078,1780398647000,-500.56344493,0.00013698,2]
[423763080,1780398647000,-500.0,0.0001589,2]
[423763090,1780398647000,-49.81912764,0.00019726,2]
[423763091,1780398647000,-761.12087236,0.00019726,2]
[423763079,1780398647000,-500.0,0.00015616,2]
[423763081,1780398647000,-500.0,0.00016164,2]
[423763089,1780398647000,-535.91,0.00019726,2]
[423763082,1780398647000,-487.26557393,0.00016438,2]
[423763088,1780398647000,-29.45621966,0.000197,2]
[423763083,1780398647000,-244.43255657,0.00019546,2]
[423763085,1780398647000,-786.24322287,0.00019548,2]
[423763084,1780398647000,-701.31,0.00019546,2]
[423763087,1780398647000,-121.54378034,0.000197,2]
[423763092,1780398647000,-32.8896707,0.00019726,2]
[423763093,1780398647000,-1029.6003293,0.00019726,2]
[423763021,1780398647000,-233.3688881,0.00019011,7]
[423763052,1780398647000,-535.91,0.00019452,2]
[423763060,1780398647000,-151.0,0.00019537,2]
[423763086,1780398647000,-486.90677713,0.00019548,2]
[423763056,1780398647000,-1062.49,0.00019452,2]
[423763018,1780398647000,-276.62920869,0.00019011,7]
[423763023,1780398647000,-152.0,0.00019022,7]
[423763025,1780398647000,-200.0,0.000191,2]
[423763036,1780398647000,-821.69,0.00019272,2]
[423763038,1780398647000,-701.31,0.00019272,2]
[423763037,1780398647000,-690.91,0.00019272,2]
[423763032,1780398647000,-759.36,0.0001927,2]
[423763029,1780398647000,-151.0,0.00019241,2]
[423763044,1780398647000,-151.0,0.000193,2]
[423763041,1780398647000,-1337.3462932,0.00019293,7]
[423763042,1780398647000,-151.0,0.000193,2]
[423763039,1780398647000,-1273.15,0.00019274,2]
[423763045,1780398647000,-4900.5748316,0.00019326,2]
[423763031,1780398647000,-501.38,0.0001927,2]
[423763046,1780398647000,-1140.12494327,0.00019387,2]
[423763047,1780398647000,-864.0,0.00019395,2]
[423763035,1780398647000,-569.45,0.0001927,2]
[423763050,1780398647000,-151.0,0.000194,2]
[423763054,1780398647000,-810.94,0.00019452,2]
[423763061,1780398647000,-151.0,0.00019537,2]
[423763059,1780398647000,-151.0,0.00019537,2]
[423763057,1780398647000,-151.0,0.000195,2]
[423763040,1780398647000,-2938.56545566,0.00019292,7]
[423763043,1780398647000,-151.0,0.000193,2]
[423763048,1780398647000,-151.0,0.000194,2]
[423763062,1780398647000,-151.0,0.00019537,2]
[423763098,1780398648000,-690.91,0.0001982,2]
[423763103,1780398648000,-420.8168224,0.0001995,2]
[423763104,1780398648000,-2070.0,0.0001995,2]
[423763097,1780398648000,-821.69,0.0001982,2]
[423763101,1780398648000,-3860.89487513,0.000199,2]
[423763096,1780398648000,-569.45,0.00019818,2]
[423763099,1780398648000,-701.31,0.0001982,2]
[423763095,1780398648000,-759.36,0.00019818,2]
[423763100,1780398648000,-1273.15,0.00019822,2]
[423763102,1780398648000,-26.97169214,0.0001995,2]
[423763106,1780398648000,-851.17709859,0.0001995,2]
[423763108,1780398648000,-5674.88095147,0.0001995,2]
[423763107,1780398648000,-2149.13488155,0.0001995,2]
[423763105,1780398648000,-61208.65495024,0.0001995,2]
[423763094,1780398648000,-151.0,0.000198,2]
[423763126,1780399328000,1261.37949011,7.6e-05,2]
[423763129,1780399357000,35000.0,0.00023203,30]
[423763196,1780399832000,-176.96625817,0.00013698,2]
[423763182,1780399832000,-500.0,0.00013698,2]
[423763198,1780399832000,-323.03374183,0.00013698,2]
[423763213,1780399832000,-237.31020766,0.00013698,2]
[423763202,1780399832000,-438.87821767,0.00013698,2]
[423763217,1780399832000,-578.6677293,0.00013698,2]
[423763187,1780399832000,-500.0,0.00013698,2]
[423763212,1780399832000,-224.52821222,0.00013698,2]
[423763200,1780399832000,-61.12178233,0.00013698,2]
[423763185,1780399832000,-500.0,0.00013698,2]
[423763193,1780399832000,-500.0,0.00013698,2]
[423763183,1780399832000,-500.0,0.00013698,2]
[423763194,1780399832000,-500.0,0.00013698,2]
[423763189,1780399832000,-500.0,0.00013698,2]
[423763191,1780399832000,-496.50385258,0.00013698,2]
[423763176,1780399832000,-15000.0,0.0001265,2]
[423763178,1780399832000,-160.0,0.00013589,2]
[423763172,1780399832000,-5000.0,0.000121,2]
[423763175,1780399832000,-379.0,0.00012344,2]
[423763174,1780399832000,-5000.0,0.00012222,2]
[423763203,1780399832000,-661.01,0.00013698,2]
[423763180,1780399832000,-837.64023064,0.00013598,2]
[423763220,1780399832000,-500.0,0.00013698,2]
[423763225,1780399832000,-500.0,0.00013698,2]
[423763205,1780399832000,-500.0,0.00013698,2]
[423763242,1780399832000,-159.18841809,0.00013698,2]
[423763241,1780399832000,-341.28134066,0.00013698,2]
[423763240,1780399832000,-500.0,0.00013698,2]
[423763237,1780399832000,-500.0,0.00013698,2]
[423763210,1780399832000,-500.0,0.00013698,2]
[423763236,1780399832000,-500.0,0.00013698,2]
[423763238,1780399832000,-500.0,0.00013698,2]
[423763235,1780399832000,-500.0,0.00013698,2]
[423763233,1780399832000,-321.68209061,0.00013698,2]
[423763243,1780399832000,-302.71949348,0.00013698,2]
[423763239,1780399832000,-500.0,0.00013698,2]
[423763232,1780399832000,-500.0,0.00013698,2]
[423763231,1780399832000,-500.0,0.00013698,2]
[423763226,1780399832000,-500.0,0.00013698,2]
[423763228,1780399832000,-500.0,0.00013698,2]
[423763223,1780399832000,-278.1,0.00013698,2]
[423763215,1780399832000,-262.68979234,0.00013698,2]
[423763208,1780399832000,-500.0,0.00013698,2]
[423763222,1780399832000,-500.0,0.00013698,2]
[423763221,1780399832000,-315.20887041,0.00013698,2]
[423763219,1780399832000,-497.8361707,0.00013698,2]
[423763230,1780399832000,-500.0,0.00013698,2]
[423763297,1780399840000,-222.78539373,0.00013698,2]
[423763308,1780399840000,-500.0,0.00013698,2]
[423763310,1780399840000,-500.0,0.00013698,2]
[423763303,1780399840000,-500.0,0.00013698,2]
[423763306,1780399840000,-500.0,0.00013698,2]
[423763290,1780399840000,-197.28050652,0.00013698,2]
[423763295,1780399840000,-500.0,0.00013698,2]
[423763293,1780399840000,-500.0,0.00013698,2]
[423763305,1780399840000,-506.44252314,0.00013698,2]
[423763292,1780399840000,-500.0,0.00013698,2]
[423763288,1780399840000,-5000.0,0.00013561,2]
[423763299,1780399840000,-500.0,0.00013698,2]
[423763312,1780399840000,-500.0,0.00013698,2]
[423763316,1780399840000,-500.0,0.00013698,2]
[423763314,1780399840000,-500.0,0.00013698,2]
[423763301,1780399840000,-500.0,0.00013698,2]
[423763332,1780399840000,-500.0,0.00013698,2]
[423763337,1780399840000,-500.0,0.00013698,2]
[423763335,1780399840000,-500.0,0.00013698,2]
[423763330,1780399840000,-500.0,0.00013698,2]
[423763334,1780399840000,-500.0,0.00013698,2]
[423763326,1780399840000,-500.0,0.00013698,2]
[423763324,1780399840000,-500.0,0.00013698,2]
[423763322,1780399840000,-500.0,0.00013698,2]
[423763319,1780399840000,-222.65632882,0.00013698,2]
[423763318,1780399840000,-505.90145425,0.00013698,2]
[423763328,1780399840000,-500.0,0.00013698,2]
[423763353,1780399841000,-1000.0,0.00013699,2]
[423763370,1780399841000,-661.01,0.00013972,2]
[423763372,1780399841000,-500.0,0.00013972,2]
[423763358,1780399841000,-500.0,0.00013972,2]
[423763356,1780399841000,-347.04350984,0.00013971,2]
[423763368,1780399841000,-500.0,0.00013972,2]
[423763354,1780399841000,-7015.12216019,0.00013797,2]
[423763350,1780399841000,-500.0,0.00013698,2]
[423763345,1780399841000,-500.0,0.00013698,2]
[423763364,1780399841000,-500.0,0.00013972,2]
[423763360,1780399841000,-500.0,0.00013972,2]
[423763362,1780399841000,-500.0,0.00013972,2]